Workbook

Sheet Spreadsheet14.1
B9: Credit curve | F9: 5Y | G9: 10Y
B10: 1 | C10: 200 | E10: CVA | F10: =-SUMPRODUCT(D19:D38,E19:E38)*LGD -> -0.00559288224 | G10: =-SUMPRODUCT(D19:D58,E19:E58)*LGD -> -0.01412623453
B11: 3 | C11: 200 | E11: Risky Duration | F11: =(1-EXP(-C12/10000/LGD*5))/(C12/10000/LGD) -> 4.605548253 | G11: =(1-EXP(-C12/10000/LGD*10))/(C12/10000/LGD) -> 8.504060683
B12: 5 | C12: 200 | E12: CVA (bps) | F12: =F10*10000/F11 -> -12.14379251 | G12: =G10*10000/G11 -> -16.61116384
B13: 7 | C13: 200 | E13: EPE | F13: =AVERAGE(E19:E38) -> 0.06166597781 | G13: =AVERAGE(E19:E58) -> 0.085807894
B14: 10 | C14: 200 | E14: CVA (bps) | F14: =-F13*C12 -> -12.33319556 | G14: =-G13*C14 -> -17.1615788
B15: LGD | C15: 0.6
C17: Spread | D17: Def Prob | E17: EE
B18: 0 | C18: =cubicspline($B$10:$B$14,$C$10:$C$14,B18) -> 200
B19: =B18+0.25 -> 0.25 | C19: 200 | D19: =EXP(-B18*C18/10000/LGD)-EXP(-B19*C19/10000/LGD) -> 0.008298707361 | E19: =SQRT(B19)*4% -> 0.02
B20: 0.5 | C20: 200 | D20: 0.008229838817 | E20: =SQRT(B20)*4% -> 0.02828427125
B21: 0.75 | C21: 200 | D21: 0.008161541793 | E21: 0.03464101615
B22: 1 | C22: 200 | D22: 0.008093811546 | E22: 0.04
B23: 1.25 | C23: 200 | D23: 0.008026643373 | E23: 0.04472135955
B24: 1.5 | C24: 200 | D24: 0.007960032608 | E24: 0.04898979486
B25: 1.75 | C25: 200 | D25: 0.007893974627 | E25: 0.05291502622
B26: 2 | C26: 200 | D26: 0.007828464842 | E26: 0.05656854249
B27: 2.25 | C27: 200 | D27: 0.007763498703 | E27: 0.06
B28: 2.5 | C28: 200 | D28: 0.007699071699 | E28: 0.0632455532
B29: 2.75 | C29: 200 | D29: 0.007635179356 | E29: 0.06633249581
B30: 3 | C30: 200 | D30: 0.007571817237 | E30: 0.0692820323
B31: 3.25 | C31: 200 | D31: 0.007508980942 | E31: 0.07211102551
B32: 3.5 | C32: 200 | D32: 0.007446666106 | E32: 0.07483314774
B33: 3.75 | C33: 200 | D33: 0.007384868403 | E33: 0.07745966692
B34: 4 | C34: 200 | D34: 0.007323583542 | E34: 0.08
B35: 4.25 | C35: 200 | D35: 0.007262807265 | E35: 0.08246211251
B36: 4.5 | C36: 200 | D36: 0.007202535353 | E36: 0.08485281374
B37: 4.75 | C37: 200 | D37: 0.00714276362 | E37: 0.08717797887
B38: 5 | C38: 200 | D38: 0.007083487915 | E38: 0.0894427191
B39: 5.25 | C39: 200 | D39: 0.007024704121 | E39: 0.0916515139
B40: 5.5 | C40: 200 | D40: 0.006966408158 | E40: 0.0938083152
B41: 5.75 | C41: 200 | D41: 0.006908595975 | E41: 0.09591663047
B42: 6 | C42: 200 | D42: 0.006851263559 | E42: 0.09797958971
B43: 6.25 | C43: 200 | D43: 0.006794406927 | E43: 0.1
B44: 6.5 | C44: 200 | D44: 0.006738022133 | E44: 0.1019803903
B45: 6.75 | C45: 200 | D45: 0.006682105259 | E45: 0.1039230485
B46: 7 | C46: 200 | D46: 0.006626652423 | E46: 0.1058300524
B47: 7.25 | C47: 200.0000102 | D47: 0.006571669426 | E47: 0.1077032961
B48: 7.5 | C48: 199.9999898 | D48: 0.006517103936 | E48: 0.1095445115
B49: 7.75 | C49: 200 | D49: 0.006463049694 | E49: 0.1113552873
B50: 8 | C50: 200.0000102 | D50: 0.006409415304 | E50: 0.113137085
B51: 8.25 | C51: 199.9999975 | D51: 0.006356202095 | E51: 0.1148912529
B52: 8.5 | C52: 200 | D52: 0.006303469426 | E52: 0.1166190379
B53: 8.75 | C53: 199.9999949 | D53: 0.006251150603 | E53: 0.1183215957
B54: 9 | C54: 200.0000051 | D54: 0.006199290822 | E54: 0.12
B55: 9.25 | C55: 200 | D55: 0.006147827969 | E55: 0.1216552506
B56: 9.5 | C56: 200.0000025 | D56: 0.006096817483 | E56: 0.1232882801
B57: 9.75 | C57: 200.0000013 | D57: 0.006046217429 | E57: 0.12489996
B58: 10 | C58: 200 | D58: 0.005996041575 | E58: 0.1264911064

Sheet Spreadsheet14.2
B9: Parameters
B10: Counterparty Spread | D10: 200
B11: Own Spread | D11: 100
B12: Counterparty LGD | D12: 0.6
B13: Own LGD | D13: 0.6
B15: Calculations
B16: Unconditional | D16: Conditional
B17: UCVA | C17: =-CntrptyLGD*SUMPRODUCT(D26:D208,G26:G208) -> -0.1309053384 | D17: CVA | E17: =-CntrptyLGD*SUMPRODUCT(D26:D208,E25:E207,G26:G208) -> -0.1261735578
B18: UDVA | C18: =-PartyLGD*SUMPRODUCT(F26:F208,H26:H208) -> 0.135679877 | D18: DVA | E18: =-PartyLGD*SUMPRODUCT(F26:F208,C25:C207,H26:H208) -> 0.1264418868
B19: UBCVA | C19: =C17+C18 -> 0.004774538552 | D19: BCVA | E19: =E17+E18 -> 0.0002683289666
C24: Survival (C) | D24: Def Prob (C) | E24: Survival (P) | F24: Def Prob (P) | G24: EE | H24: NEE
B25: 0 | C25: 1 | E25: 1 | G25: 0 | H25: 0
B26: 0.002747252747 | C26: =C25*EXP(-(B26-B25)*SpreadCntrpty/10000/CntrptyLGD) -> 0.9999084291 | D26: =C25-C26 -> 9.15708987e-05 | E26: =E25*EXP(-(B26-B25)*InstitutionSpread/10000/PartyLGD) -> 0.9999542135 | F26: =-E25+E26 -> -4.578649755e-05 | G26: 0.1568724551 | H26: -0.1539200162
B27: 0.02747252747 | C27: 0.9990846683 | D27: 0.0008237608451 | E27: 0.9995422294 | F27: =E26-E27 -> 0.0004119841514 | G27: 0.4470012033 | H27: -0.5113133798
B28: 0.05494505495 | C28: 0.9981701743 | D28: 0.0009144939116 | E28: 0.9990846683 | F28: =E27-E28 -> 0.0004575610949 | G28: 0.6308559604 | H28: -0.7616084698
B29: 0.08241758242 | C29: 0.9972565175 | D29: 0.0009136568463 | E29: 0.9986273166 | F29: 0.0004573516369 | G29: 0.7273090761 | H29: -0.9865292219
B30: 0.1098901099 | C30: 0.996343697 | D30: 0.0009128205472 | E30: 0.9981701743 | F30: 0.0004571422747 | G30: 0.8413134905 | H30: -1.149006669
B31: 0.1373626374 | C31: 0.9954317119 | D31: 0.0009119850136 | E31: 0.9977132413 | F31: 0.0004569330084 | G31: 0.9047569669 | H31: -1.292567025
B32: 0.1648351648 | C32: 0.9945205617 | D32: 0.0009111502448 | E32: 0.9972565175 | F32: 0.0004567238379 | G32: 0.9446871756 | H32: -1.42009886
B33: 0.1923076923 | C33: 0.9936102455 | D33: 0.00091031624 | E33: 0.9968000027 | F33: 0.0004565147631 | G33: 0.9792141324 | H33: -1.570514869
B34: 0.2197802198 | C34: 0.9927007625 | D34: 0.0009094829987 | E34: 0.996343697 | F34: 0.0004563057841 | G34: 0.9782454627 | H34: -1.682177967
B35: 0.2472527473 | C35: 0.9917921119 | D35: 0.00090865052 | E35: 0.9958876001 | F35: 0.0004560969007 | G35: 0.9805089588 | H35: -1.816323846
B36: 0.2747252747 | C36: 0.9908842931 | D36: 0.0009078188033 | E36: 0.9954317119 | F36: 0.0004558881129 | G36: 1.084466909 | H36: -1.891524356
B37: 0.3021978022 | C37: 0.9899773053 | D37: 0.000906987848 | E37: 0.9949760325 | F37: 0.0004556794207 | G37: 1.091820446 | H37: -2.024038464
B38: 0.3296703297 | C38: 0.9890711476 | D38: 0.0009061576532 | E38: 0.9945205617 | F38: 0.0004554708241 | G38: 1.090906177 | H38: -2.136455894
B39: 0.3571428571 | C39: 0.9881658194 | D39: 0.0009053282183 | E39: 0.9940652994 | F39: 0.0004552623229 | G39: 1.107829685 | H39: -2.273742657
B40: 0.3846153846 | C40: 0.9872613199 | D40: 0.0009044995427 | E40: 0.9936102455 | F40: 0.0004550539171 | G40: 1.134297554 | H40: -2.417854787
B41: 0.4120879121 | C41: 0.9863576482 | D41: 0.0009036716255 | E41: 0.9931553998 | F41: 0.0004548456068 | G41: 1.196140875 | H41: -2.546615708
B42: 0.4395604396 | C42: 0.9854548038 | D42: 0.0009028444662 | E42: 0.9927007625 | F42: 0.0004546373919 | G42: 1.220716599 | H42: -2.650511005
B43: 0.467032967 | C43: 0.9845527857 | D43: 0.000902018064 | E43: 0.9922463332 | F43: 0.0004544292722 | G43: 1.203356907 | H43: -2.751722493
B44: 0.4945054945 | C44: 0.9836515933 | D44: 0.0009011924183 | E44: 0.9917921119 | F44: 0.0004542212478 | G44: 1.18879909 | H44: -2.838399562
B45: 0.521978022 | C45: 0.9827512258 | D45: 0.0009003675282 | E45: 0.9913380986 | F45: 0.0004540133187 | G45: 1.465832597 | H45: -2.459953566
B46: 0.5494505495 | C46: 0.9818516824 | D46: 0.0008995433932 | E46: 0.9908842931 | F46: 0.0004538054847 | G46: 1.497036712 | H46: -2.528082071
B47: 0.5769230769 | C47: 0.9809529624 | D47: 0.0008987200126 | E47: 0.9904306954 | F47: 0.0004535977459 | G47: 1.501480507 | H47: -2.63129516
B48: 0.6043956044 | C48: 0.980055065 | D48: 0.0008978973857 | E48: 0.9899773053 | F48: 0.0004533901021 | G48: 1.505198682 | H48: -2.688914608
B49: 0.6318681319 | C49: 0.9791579895 | D49: 0.0008970755117 | E49: 0.9895241227 | F49: 0.0004531825534 | G49: 1.514340969 | H49: -2.839261741
B50: 0.6593406593 | C50: 0.9782617351 | D50: 0.00089625439 | E50: 0.9890711476 | F50: 0.0004529750998 | G50: 1.49839352 | H50: -2.913155737
B51: 0.6868131868 | C51: 0.9773663011 | D51: 0.0008954340199 | E51: 0.9886183799 | F51: 0.0004527677411 | G51: 1.48283752 | H51: -3.016622139
B52: 0.7142857143 | C52: 0.9764716867 | D52: 0.0008946144007 | E52: 0.9881658194 | F52: 0.0004525604773 | G52: 1.469846542 | H52: -3.122406965
B53: 0.7417582418 | C53: 0.9755778911 | D53: 0.0008937955318 | E53: 0.9877134661 | F53: 0.0004523533084 | G53: 1.435685562 | H53: -3.224009347
B54: 0.7692307692 | C54: 0.9746849137 | D54: 0.0008929774123 | E54: 0.9872613199 | F54: 0.0004521462343 | G54: 1.522788043 | H54: -3.242004736
B55: 0.7967032967 | C55: 0.9737927537 | D55: 0.0008921600418 | E55: 0.9868093806 | F55: 0.000451939255 | G55: 1.520594316 | H55: -3.318829832
B56: 0.8241758242 | C56: 0.9729014102 | D56: 0.0008913434194 | E56: 0.9863576482 | F56: 0.0004517323705 | G56: 1.516901767 | H56: -3.451656249
B57: 0.8516483516 | C57: 0.9720108827 | D57: 0.0008905275444 | E57: 0.9859061227 | F57: 0.0004515255807 | G57: 1.53247327 | H57: -3.535005428
B58: 0.8791208791 | C58: =C57*EXP(-(B58-B57)*SpreadCntrpty/10000/CntrptyLGD) -> 0.9711211703 | D58: =C57-C58 -> 0.0008897124163 | E58: =E57*EXP(-(B58-B57)*InstitutionSpread/10000/PartyLGD) -> 0.9854548038 | F58: 0.0004513188855 | G58: 1.520519551 | H58: -3.63219251
B59: 0.9065934066 | C59: 0.9702322723 | D59: 0.0008888980343 | E59: 0.9850036915 | F59: 0.000451112285 | G59: 1.463426214 | H59: -3.711515366
B60: 0.9340659341 | C60: 0.9693441879 | D60: 0.0008880843977 | E60: 0.9845527857 | F60: 0.000450905779 | G60: 1.441053892 | H60: -3.763090935
B61: 0.9615384615 | C61: 0.9684569163 | D61: 0.0008872715059 | E61: 0.9841020863 | F61: 0.0004506993676 | G61: 1.421347305 | H61: -3.820953035
B62: 0.989010989 | C62: 0.967570457 | D62: 0.0008864593581 | E62: 0.9836515933 | F62: 0.0004504930507 | G62: 1.397729237 | H62: -3.896882596
B63: 1.016483516 | C63: 0.966684809 | D63: 0.0008856479537 | E63: 0.9832013065 | F63: 0.0004502868282 | G63: 1.614308457 | H63: -3.46976735
B64: 1.043956044 | C64: 0.9657999717 | D64: 0.000884837292 | E64: 0.9827512258 | F64: 0.0004500807001 | G64: 1.600655484 | H64: -3.500030852
B65: 1.071428571 | C65: 0.9649159444 | D65: 0.0008840273723 | E65: 0.9823013511 | F65: 0.0004498746663 | G65: 1.620135661 | H65: -3.534181135
B66: 1.098901099 | C66: 0.9640327262 | D66: 0.000883218194 | E66: 0.9818516824 | F66: 0.0004496687269 | G66: 1.63880609 | H66: -3.601220446
B67: 1.126373626 | C67: 0.9631503164 | D67: 0.0008824097564 | E67: 0.9814022195 | F67: 0.0004494628818 | G67: 1.636987905 | H67: -3.667524242
B68: 1.153846154 | C68: 0.9622687144 | D68: 0.0008816020587 | E68: 0.9809529624 | F68: 0.0004492571309 | G68: 1.59224397 | H68: -3.70990815
B69: 1.181318681 | C69: 0.9613879193 | D69: 0.0008807951004 | E69: 0.9805039109 | F69: 0.0004490514741 | G69: 1.621290056 | H69: -3.753731047
B70: 1.208791209 | C70: 0.9605079304 | D70: 0.0008799888806 | E70: 0.980055065 | F70: 0.0004488459115 | G70: 1.608031933 | H70: -3.835780048
B71: 1.236263736 | C71: 0.959628747 | D71: 0.0008791833989 | E71: 0.9796064245 | F71: 0.0004486404431 | G71: 1.625436073 | H71: -3.921849251
B72: 1.263736264 | C72: 0.9587503683 | D72: 0.0008783786544 | E72: 0.9791579895 | F72: 0.0004484350686 | G72: 1.671445074 | H72: -3.923199589
B73: 1.291208791 | C73: 0.9578727937 | D73: 0.0008775746466 | E73: 0.9787097597 | F73: 0.0004482297882 | G73: 1.668202061 | H73: -3.990280331
B74: 1.318681319 | C74: 0.9569960223 | D74: 0.0008767713746 | E74: 0.9782617351 | F74: 0.0004480246018 | G74: 1.620920612 | H74: -4.041096356
B75: 1.346153846 | C75: 0.9561200535 | D75: 0.0008759688379 | E75: 0.9778139156 | F75: 0.0004478195093 | G75: 1.606151317 | H75: -4.093015232
B76: 1.373626374 | C76: 0.9552448864 | D76: 0.0008751670359 | E76: 0.9773663011 | F76: 0.0004476145106 | G76: 1.615681603 | H76: -4.153196835
B77: 1.401098901 | C77: 0.9543705205 | D77: 0.0008743659677 | E77: 0.9769188914 | F77: 0.0004474096059 | G77: 1.63002649 | H77: -4.205469909
B78: 1.428571429 | C78: 0.9534969548 | D78: 0.0008735656328 | E78: 0.9764716867 | F78: 0.0004472047949 | G78: 1.636460689 | H78: -4.246242062
B79: 1.456043956 | C79: 0.9526241888 | D79: 0.0008727660304 | E79: 0.9760246866 | F79: 0.0004470000776 | G79: 1.649052127 | H79: -4.297466283
B80: 1.483516484 | C80: 0.9517522216 | D80: 0.00087196716 | E80: 0.9755778911 | F80: 0.0004467954541 | G80: 1.661223269 | H80: -4.346033632
B81: 1.510989011 | C81: 0.9508810526 | D81: 0.0008711690207 | E81: 0.9751313002 | F81: 0.0004465909243 | G81: 1.836032421 | H81: -3.891198573
B82: 1.538461538 | C82: 0.950010681 | D82: 0.0008703716121 | E82: 0.9746849137 | F82: 0.0004463864881 | G82: 1.881533011 | H82: -3.963305196
B83: 1.565934066 | C83: 0.9491411061 | D83: 0.0008695749333 | E83: 0.9742387316 | F83: 0.0004461821454 | G83: 1.896267679 | H83: -4.028641374
B84: 1.593406593 | C84: 0.9482723271 | D84: 0.0008687789838 | E84: 0.9737927537 | F84: 0.0004459778963 | G84: 1.89724491 | H84: -4.113126388
B85: 1.620879121 | C85: 0.9474043433 | D85: 0.0008679837628 | E85: 0.9733469799 | F85: 0.0004457737407 | G85: 1.889624817 | H85: -4.174066586
B86: 1.648351648 | C86: 0.9465371541 | D86: 0.0008671892697 | E86: 0.9729014102 | F86: 0.0004455696786 | G86: 1.938649232 | H86: -4.23184683
B87: 1.675824176 | C87: 0.9456707586 | D87: 0.0008663955038 | E87: 0.9724560445 | F87: 0.0004453657099 | G87: 1.908190091 | H87: -4.252839994
B88: 1.703296703 | C88: 0.9448051561 | D88: 0.0008656024645 | E88: 0.9720108827 | F88: 0.0004451618345 | G88: 1.890103032 | H88: -4.277135422
B89: 1.730769231 | C89: 0.9439403459 | D89: 0.0008648101511 | E89: 0.9715659247 | F89: 0.0004449580525 | G89: 1.914384734 | H89: -4.274744478
B90: 1.758241758 | C90: =C89*EXP(-(B90-B89)*SpreadCntrpty/10000/CntrptyLGD) -> 0.9430763274 | D90: =C89-C90 -> 0.0008640185629 | E90: =E89*EXP(-(B90-B89)*InstitutionSpread/10000/PartyLGD) -> 0.9711211703 | F90: 0.0004447543638 | G90: 1.92566321 | H90: -4.241627082
B91: 1.785714286 | C91: 0.9422130997 | D91: 0.0008632276993 | E91: 0.9706766195 | F91: 0.0004445507683 | G91: 1.909601318 | H91: -4.292571431
B92: 1.813186813 | C92: 0.9413506621 | D92: 0.0008624375596 | E92: 0.9702322723 | F92: =E91-E92 -> 0.000444347266 | G92: 1.897175335 | H92: -4.323436281
B93: 1.840659341 | C93: 0.940489014 | D93: 0.0008616481431 | E93: 0.9697881284 | F93: 0.0004441438569 | G93: 1.920830258 | H93: -4.367489354
B94: 1.868131868 | C94: 0.9396281545 | D94: 0.0008608594492 | E94: 0.9693441879 | F94: 0.0004439405408 | G94: 1.878792649 | H94: -4.41789579
B95: 1.895604396 | C95: 0.938768083 | D95: 0.0008600714772 | E95: 0.9689004505 | F95: 0.0004437373179 | G95: 1.891604629 | H95: -4.451665128
B96: 1.923076923 | C96: 0.9379087988 | D96: 0.0008592842265 | E96: 0.9684569163 | F96: 0.000443534188 | G96: 1.869557154 | H96: -4.455741347
B97: 1.950549451 | C97: 0.9370503011 | D97: 0.0008584976964 | E97: 0.9680135852 | F97: 0.000443331151 | G97: 1.874358394 | H97: -4.507116521
B98: 1.978021978 | C98: 0.9361925892 | D98: 0.0008577118862 | E98: 0.967570457 | F98: 0.000443128207 | G98: 1.862476453 | H98: -4.524649365
B99: 2.005494505 | C99: 0.9353356624 | D99: 0.0008569267953 | E99: 0.9671275316 | F99: 0.000442925356 | G99: 1.903547585 | H99: -4.358954986
B100: 2.032967033 | C100: 0.93447952 | D100: 0.000856142423 | E100: 0.966684809 | F100: 0.0004427225977 | G100: 2.004759038 | H100: -4.103388852
B101: 2.06043956 | C101: 0.9336241613 | D101: 0.0008553587686 | E101: 0.9662422891 | F101: 0.0004425199323 | G101: 2.005894524 | H101: -4.152957536
B102: 2.087912088 | C102: 0.9327695854 | D102: 0.0008545758316 | E102: 0.9657999717 | F102: 0.0004423173597 | G102: 2.027006384 | H102: -4.186638515
B103: 2.115384615 | C103: 0.9319157918 | D103: 0.0008537936112 | E103: 0.9653578569 | F103: 0.0004421148798 | G103: 2.005783791 | H103: -4.207777506
B104: 2.142857143 | C104: 0.9310627797 | D104: 0.0008530121068 | E104: 0.9649159444 | F104: 0.0004419124926 | G104: 2.058717765 | H104: -4.186539461
B105: 2.17032967 | C105: 0.9302105484 | D105: 0.0008522313178 | E105: 0.9644742342 | F105: 0.000441710198 | G105: 2.054808359 | H105: -4.17760633
B106: 2.197802198 | C106: 0.9293590971 | D106: 0.0008514512434 | E106: 0.9640327262 | F106: 0.000441507996 | G106: 2.065805726 | H106: -4.183875129
B107: 2.225274725 | C107: 0.9285084253 | D107: 0.000850671883 | E107: 0.9635914203 | F107: 0.0004413058866 | G107: 2.059718128 | H107: -4.196422918
B108: 2.252747253 | C108: 0.927658532 | D108: 0.0008498932361 | E108: 0.9631503164 | F108: 0.0004411038697 | G108: 2.081083422 | H108: -4.212953006
B109: 2.28021978 | C109: 0.9268094167 | D109: 0.0008491153018 | E109: 0.9627094145 | F109: 0.0004409019453 | G109: 2.083087018 | H109: -4.152714752
B110: 2.307692308 | C110: 0.9259610786 | D110: 0.0008483380796 | E110: 0.9622687144 | F110: 0.0004407001134 | G110: 2.077630081 | H110: -4.172301629
B111: 2.335164835 | C111: 0.9251135171 | D111: 0.0008475615688 | E111: 0.961828216 | F111: 0.0004404983738 | G111: 2.021206606 | H111: -4.191435206
B112: 2.362637363 | C112: 0.9242667313 | D112: 0.0008467857688 | E112: 0.9613879193 | F112: 0.0004402967266 | G112: 2.007257744 | H112: -4.206273863
B113: 2.39010989 | C113: 0.9234207206 | D113: 0.0008460106789 | E113: 0.9609478241 | F113: 0.0004400951717 | G113: 1.964755832 | H113: -4.221216783
B114: 2.417582418 | C114: 0.9225754843 | D114: 0.0008452362985 | E114: 0.9605079304 | F114: 0.000439893709 | G114: 1.936318293 | H114: -4.245454922
B115: 2.445054945 | C115: 0.9217310217 | D115: 0.0008444626269 | E115: 0.960068238 | F115: 0.0004396923386 | G115: 1.915961951 | H115: -4.269188618
B116: 2.472527473 | C116: 0.920887332 | D116: 0.0008436896634 | E116: 0.959628747 | F116: 0.0004394910603 | G116: 1.863411807 | H116: -4.275054997
B117: 2.5 | C117: 0.9200444146 | D117: 0.0008429174075 | E117: 0.9591894571 | F117: 0.0004392898742 | G117: 1.858412743 | H117: -4.310891503
B118: 2.527472527 | C118: 0.9192022688 | D118: 0.0008421458585 | E118: 0.9587503683 | F118: 0.0004390887802 | G118: 2.00539843 | H118: -3.84915304
B119: 2.554945055 | C119: 0.9183608938 | D119: 0.0008413750156 | E119: 0.9583114806 | F119: 0.0004388877782 | G119: 2.006002355 | H119: -3.916540218
B120: 2.582417582 | C120: 0.9175202889 | D120: 0.0008406048784 | E120: 0.9578727937 | F120: 0.0004386868683 | G120: 2.019207465 | H120: -3.929145013
B121: 2.60989011 | C121: 0.9166804534 | D121: 0.000839835446 | E121: 0.9574343076 | F121: 0.0004384860503 | G121: 1.986987164 | H121: -3.934627013
B122: 2.637362637 | C122: =C121*EXP(-(B122-B121)*SpreadCntrpty/10000/CntrptyLGD) -> 0.9158413867 | D122: 0.000839066718 | E122: =E121*EXP(-(B122-B121)*InstitutionSpread/10000/PartyLGD) -> 0.9569960223 | F122: 0.0004382853243 | G122: 2.007368282 | H122: -3.935972218
B123: 2.664835165 | C123: 0.915003088 | D123: 0.0008382986936 | E123: 0.9565579376 | F123: 0.0004380846901 | G123: 2.011664702 | H123: -3.938748103
B124: 2.692307692 | C124: 0.9141655566 | D124: 0.0008375313722 | E124: 0.9561200535 | F124: 0.0004378841478 | G124: 2.021516525 | H124: -3.929803987
B125: 2.71978022 | C125: 0.9133287919 | D125: 0.0008367647531 | E125: 0.9556823698 | F125: 0.0004376836973 | G125: 1.980181943 | H125: -3.924444372
B126: 2.747252747 | C126: 0.9124927931 | D126: 0.0008359988358 | E126: 0.9552448864 | F126: 0.0004374833386 | G126: 1.974345382 | H126: -3.906099626
B127: 2.774725275 | C127: 0.9116575594 | D127: 0.0008352336195 | E127: 0.9548076034 | F127: 0.0004372830715 | G127: 1.995385431 | H127: -3.84469843
B128: 2.802197802 | C128: 0.9108230903 | D128: 0.0008344691037 | E128: 0.9543705205 | F128: 0.0004370828962 | G128: 1.975839955 | H128: -3.85410449
B129: 2.82967033 | C129: 0.909989385 | D129: 0.0008337052876 | E129: 0.9539336377 | F129: 0.0004368828124 | G129: 1.942573494 | H129: -3.858447092
B130: 2.857142857 | C130: 0.9091564429 | D130: 0.0008329421707 | E130: 0.9534969548 | F130: 0.0004366828203 | G130: 1.911703487 | H130: -3.853610638
B131: 2.884615385 | C131: 0.9083242631 | D131: 0.0008321797523 | E131: 0.9530604719 | F131: 0.0004364829197 | G131: 1.876590647 | H131: -3.861379081
B132: 2.912087912 | C132: 0.9074928451 | D132: 0.0008314180317 | E132: 0.9526241888 | F132: 0.0004362831107 | G132: 1.833408158 | H132: -3.842254267
B133: 2.93956044 | C133: 0.9066621881 | D133: 0.0008306570084 | E133: 0.9521881054 | F133: 0.0004360833931 | G133: 1.821181387 | H133: -3.856709361
B134: 2.967032967 | C134: 0.9058322914 | D134: 0.0008298966817 | E134: 0.9517522216 | F134: 0.0004358837669 | G134: 1.791108777 | H134: -3.846800106
B135: 2.994505495 | C135: 0.9050031544 | D135: 0.0008291370509 | E135: 0.9513165374 | F135: 0.0004356842321 | G135: 1.771877868 | H135: -3.854485059
B136: 3.021978022 | C136: 0.9041747762 | D136: 0.0008283781155 | E136: 0.9508810526 | F136: 0.0004354847886 | G136: 1.916979333 | H136: -3.308667356
B137: 3.049450549 | C137: 0.9033471564 | D137: 0.0008276198747 | E137: 0.9504457672 | F137: 0.0004352854365 | G137: 1.906796064 | H137: -3.284230782
B138: 3.076923077 | C138: 0.902520294 | D138: 0.0008268623279 | E138: 0.950010681 | F138: 0.0004350861756 | G138: 1.883970707 | H138: -3.2303946
B139: 3.104395604 | C139: 0.9016941886 | D139: 0.0008261054746 | E139: 0.949575794 | F139: 0.0004348870059 | G139: 1.876356159 | H139: -3.152248783
B140: 3.131868132 | C140: 0.9008688392 | D140: 0.000825349314 | E140: 0.9491411061 | F140: 0.0004346879274 | G140: 1.844680868 | H140: -3.119316608
B141: 3.159340659 | C141: 0.9000442454 | D141: 0.0008245938456 | E141: 0.9487066171 | F141: 0.00043448894 | G141: 1.776480742 | H141: -3.075614839
B142: 3.186813187 | C142: 0.8992204063 | D142: 0.0008238390687 | E142: 0.9482723271 | F142: 0.0004342900437 | G142: 1.743386447 | H142: -3.045248417
B143: 3.214285714 | C143: 0.8983973213 | D143: 0.0008230849826 | E143: 0.9478382359 | F143: 0.0004340912385 | G143: 1.699516281 | H143: -3.021166517
B144: 3.241758242 | C144: 0.8975749898 | D144: 0.0008223315868 | E144: 0.9474043433 | F144: 0.0004338925243 | G144: 1.683475847 | H144: -2.984692244
B145: 3.269230769 | C145: 0.8967534109 | D145: 0.0008215788806 | E145: 0.9469706494 | F145: 0.000433693901 | G145: 1.644194432 | H145: -2.889172672
B146: 3.296703297 | C146: 0.895932584 | D146: 0.0008208268634 | E146: 0.9465371541 | F146: 0.0004334953687 | G146: 1.604310529 | H146: -2.843713112
B147: 3.324175824 | C147: 0.8951125085 | D147: 0.0008200755345 | E147: 0.9461038571 | F147: 0.0004332969272 | G147: 1.57957387 | H147: -2.782630286
B148: 3.351648352 | C148: 0.8942931836 | D148: 0.0008193248933 | E148: 0.9456707586 | F148: 0.0004330985766 | G148: 1.552831422 | H148: -2.737897069
B149: 3.379120879 | C149: 0.8934746087 | D149: 0.0008185749392 | E149: 0.9452378582 | F149: 0.0004329003168 | G149: 1.521538033 | H149: -2.68668285
B150: 3.406593407 | C150: 0.892656783 | D150: 0.0008178256716 | E150: 0.9448051561 | F150: 0.0004327021477 | G150: 1.48049014 | H150: -2.662125993
B151: 3.434065934 | C151: 0.8918397059 | D151: 0.0008170770898 | E151: 0.944372652 | F151: 0.0004325040694 | G151: 1.425077181 | H151: -2.621246542
B152: 3.461538462 | C152: 0.8910233767 | D152: 0.0008163291932 | E152: 0.9439403459 | F152: 0.0004323060817 | G152: 1.379207186 | H152: -2.611604175
B153: 3.489010989 | C153: 0.8902077947 | D153: 0.0008155819812 | E153: 0.9435082378 | F153: 0.0004321081847 | G153: 1.346658646 | H153: -2.5884413
B154: 3.516483516 | C154: =C153*EXP(-(B154-B153)*SpreadCntrpty/10000/CntrptyLGD) -> 0.8893929593 | D154: =C153-C154 -> 0.0008148354531 | E154: =E153*EXP(-(B154-B153)*InstitutionSpread/10000/PartyLGD) -> 0.9430763274 | F154: 0.0004319103782 | G154: 1.4890126 | H154: -2.072876308
B155: 3.543956044 | C155: 0.8885788697 | D155: 0.0008140896084 | E155: 0.9426446147 | F155: 0.0004317126624 | G155: 1.469271335 | H155: -2.062801407
B156: 3.571428571 | C156: 0.8877655252 | D156: 0.0008133444463 | E156: 0.9422130997 | F156: =E155-E156 -> 0.000431515037 | G156: 1.408034879 | H156: -2.048763781
B157: 3.598901099 | C157: 0.8869529252 | D157: 0.0008125999663 | E157: 0.9417817822 | F157: 0.000431317502 | G157: 1.393532718 | H157: -2.02575755
B158: 3.626373626 | C158: 0.8861410691 | D158: 0.0008118561678 | E158: 0.9413506621 | F158: 0.0004311200576 | G158: 1.358332793 | H158: -1.979277322
B159: 3.653846154 | C159: 0.885329956 | D159: 0.00081111305 | E159: 0.9409197394 | F159: 0.0004309227034 | G159: 1.324232475 | H159: -1.949513063
B160: 3.681318681 | C160: 0.8845195854 | D160: 0.0008103706125 | E160: 0.940489014 | F160: 0.0004307254397 | G160: 1.294923121 | H160: -1.908581614
B161: 3.708791209 | C161: 0.8837099566 | D161: 0.0008096288546 | E161: 0.9400584857 | F161: 0.0004305282662 | G161: 1.26942262 | H161: -1.856990762
B162: 3.736263736 | C162: 0.8829010688 | D162: 0.0008088877756 | E162: 0.9396281545 | F162: 0.000430331183 | G162: 1.217577271 | H162: -1.830784419
B163: 3.763736264 | C163: 0.8820929214 | D163: 0.0008081473749 | E163: 0.9391980203 | F163: 0.00043013419 | G163: 1.212503675 | H163: -1.737630628
B164: 3.791208791 | C164: 0.8812855138 | D164: 0.000807407652 | E164: 0.938768083 | F164: 0.0004299372872 | G164: 1.153961822 | H164: -1.703435883
B165: 3.818681319 | C165: 0.8804788451 | D165: 0.0008066686061 | E165: 0.9383383426 | F165: 0.0004297404745 | G165: 1.106886287 | H165: -1.658585513
B166: 3.846153846 | C166: 0.8796729149 | D166: 0.0008059302367 | E166: 0.9379087988 | F166: 0.000429543752 | G166: 1.076694443 | H166: -1.62199881
B167: 3.873626374 | C167: 0.8788677224 | D167: 0.0008051925432 | E167: 0.9374794517 | F167: 0.0004293471195 | G167: 1.053227235 | H167: -1.583637586
B168: 3.901098901 | C168: 0.8780632668 | D168: 0.0008044555249 | E168: 0.9370503011 | F168: 0.0004291505769 | G168: 1.000426833 | H168: -1.56216516
B169: 3.928571429 | C169: 0.8772595477 | D169: 0.0008037191812 | E169: 0.936621347 | F169: 0.0004289541244 | G169: 0.9801920595 | H169: -1.556031298
B170: 3.956043956 | C170: 0.8764565641 | D170: 0.0008029835116 | E170: 0.9361925892 | F170: 0.0004287577618 | G170: 0.9358198603 | H170: -1.545854409
B171: 3.983516484 | C171: 0.8756543156 | D171: 0.0008022485153 | E171: 0.9357640278 | F171: 0.0004285614891 | G171: 0.9045450599 | H171: -1.54419408
B172: 4.010989011 | C172: 0.8748528014 | D172: 0.0008015141917 | E172: 0.9353356624 | F172: 0.0004283653062 | G172: 0.949844504 | H172: -1.367836914
B173: 4.038461538 | C173: 0.8740520209 | D173: 0.0008007805404 | E173: 0.9349074932 | F173: 0.0004281692131 | G173: 1.04412728 | H173: -1.105019423
B174: 4.065934066 | C174: 0.8732519733 | D174: 0.0008000475605 | E174: 0.93447952 | F174: 0.0004279732098 | G174: 0.9895674754 | H174: -1.125910459
B175: 4.093406593 | C175: 0.8724526581 | D175: 0.0007993152516 | E175: 0.9340517427 | F175: 0.0004277772963 | G175: 0.9485636515 | H175: -1.144195915
B176: 4.120879121 | C176: 0.8716540745 | D176: 0.0007985836129 | E176: 0.9336241613 | F176: 0.0004275814724 | G176: 0.9189143535 | H176: -1.149939588
B177: 4.148351648 | C177: 0.8708562218 | D177: 0.000797852644 | E177: 0.9331967755 | F177: 0.0004273857381 | G177: 0.9053598951 | H177: -1.160838411
B178: 4.175824176 | C178: 0.8700590995 | D178: 0.0007971223442 | E178: 0.9327695854 | F178: 0.0004271900935 | G178: 0.8701021092 | H178: -1.167135498
B179: 4.203296703 | C179: 0.8692627068 | D179: 0.0007963927128 | E179: 0.9323425909 | F179: 0.0004269945384 | G179: 0.8283663287 | H179: -1.182682635
B180: 4.230769231 | C180: 0.868467043 | D180: 0.0007956637493 | E180: 0.9319157918 | F180: 0.0004267990728 | G180: 0.7859051918 | H180: -1.199659465
B181: 4.258241758 | C181: 0.8676721076 | D181: 0.000794935453 | E181: 0.9314891881 | F181: 0.0004266036967 | G181: 0.731501078 | H181: -1.232068356
B182: 4.285714286 | C182: 0.8668778998 | D182: 0.0007942078233 | E182: 0.9310627797 | F182: 0.0004264084101 | G182: 0.7218583178 | H182: -1.185327963
B183: 4.313186813 | C183: 0.8660844189 | D183: 0.0007934808597 | E183: 0.9306365665 | F183: 0.0004262132128 | G183: 0.6838171158 | H183: -1.203294619
B184: 4.340659341 | C184: 0.8652916643 | D184: 0.0007927545615 | E184: 0.9302105484 | F184: 0.0004260181049 | G184: 0.6506290984 | H184: -1.222085003
B185: 4.368131868 | C185: 0.8644996354 | D185: 0.000792028928 | E185: 0.9297847253 | F185: 0.0004258230864 | G185: 0.6116081929 | H185: -1.243345967
B186: 4.395604396 | C186: =C185*EXP(-(B186-B185)*SpreadCntrpty/10000/CntrptyLGD) -> 0.8637083314 | D186: 0.0007913039588 | E186: =E185*EXP(-(B186-B185)*InstitutionSpread/10000/PartyLGD) -> 0.9293590971 | F186: 0.000425628157 | G186: 0.5808371246 | H186: -1.270403971
B187: 4.423076923 | C187: 0.8629177518 | D187: 0.0007905796532 | E187: 0.9289336638 | F187: 0.000425433317 | G187: 0.5541237446 | H187: -1.3004048
B188: 4.450549451 | C188: 0.8621278958 | D188: 0.0007898560105 | E188: 0.9285084253 | F188: 0.0004252385661 | G188: 0.5262007559 | H188: -1.332824743
B189: 4.478021978 | C189: 0.8613387627 | D189: 0.0007891330303 | E189: 0.9280833814 | F189: 0.0004250439043 | G189: 0.4956650439 | H189: -1.374205541
B190: 4.505494505 | C190: 0.860550352 | D190: 0.0007884107117 | E190: 0.927658532 | F190: 0.0004248493317 | G190: 0.5186498114 | H190: -1.221197606
B191: 4.532967033 | C191: 0.859762663 | D191: 0.0007876890544 | E191: 0.9272338772 | F191: 0.0004246548482 | G191: 0.6317762251 | H191: -0.9268968048
B192: 4.56043956 | C192: 0.8589756949 | D192: 0.0007869680576 | E192: 0.9268094167 | F192: 0.0004244604536 | G192: 0.6220194223 | H192: -0.9271217161
B193: 4.587912088 | C193: 0.8581894472 | D193: 0.0007862477208 | E193: 0.9263851506 | F193: 0.0004242661481 | G193: 0.6090150356 | H193: -0.9314403718
B194: 4.615384615 | C194: 0.8574039192 | D194: 0.0007855280433 | E194: 0.9259610786 | F194: 0.0004240719315 | G194: 0.5860604871 | H194: -0.925198002
B195: 4.642857143 | C195: 0.8566191101 | D195: 0.0007848090245 | E195: 0.9255372008 | F195: 0.0004238778038 | G195: 0.5707983634 | H195: -0.9252507838
B196: 4.67032967 | C196: 0.8558350195 | D196: 0.0007840906639 | E196: 0.9251135171 | F196: 0.000423683765 | G196: 0.560353633 | H196: -0.9214336332
B197: 4.697802198 | C197: 0.8550516465 | D197: 0.0007833729608 | E197: 0.9246900273 | F197: 0.000423489815 | G197: 0.5497241796 | H197: -0.9205592262
B198: 4.725274725 | C198: 0.8542689906 | D198: 0.0007826559147 | E198: 0.9242667313 | F198: 0.0004232959538 | G198: 0.5437006478 | H198: -0.9174779212
B199: 4.752747253 | C199: 0.8534870511 | D199: 0.0007819395249 | E199: 0.9238436291 | F199: 0.0004231021814 | G199: 0.5447958031 | H199: -0.9294768759
B200: 4.78021978 | C200: 0.8527058273 | D200: 0.0007812237908 | E200: 0.9234207206 | F200: 0.0004229084976 | G200: 0.5747864325 | H200: -0.878353717
B201: 4.807692308 | C201: 0.8519253186 | D201: 0.0007805087119 | E201: 0.9229980057 | F201: 0.0004227149025 | G201: 0.5768884064 | H201: -0.8782349192
B202: 4.835164835 | C202: 0.8511455243 | D202: 0.0007797942875 | E202: 0.9225754843 | F202: 0.000422521396 | G202: 0.5735998193 | H202: -0.8785704761
B203: 4.862637363 | C203: 0.8503664438 | D203: 0.000779080517 | E203: 0.9221531563 | F203: 0.0004223279781 | G203: 0.5662718468 | H203: -0.8820491011
B204: 4.89010989 | C204: 0.8495880764 | D204: 0.0007783673999 | E204: 0.9217310217 | F204: 0.0004221346488 | G204: 0.5640830203 | H204: -0.891576113
B205: 4.917582418 | C205: 0.8488104214 | D205: 0.0007776549355 | E205: 0.9213090803 | F205: 0.0004219414079 | G205: 0.5603811796 | H205: -0.8996267427
B206: 4.945054945 | C206: 0.8480334783 | D206: 0.0007769431232 | E206: 0.920887332 | F206: 0.0004217482555 | G206: 0.5570885855 | H206: -0.9147935029
B207: 4.972527473 | C207: 0.8472572463 | D207: 0.0007762319625 | E207: 0.9204657768 | F207: 0.0004215551916 | G207: 0.5537430473 | H207: -0.9320061446
B208: 5 | C208: 0.8464817249 | D208: 0.0007755214528 | E208: 0.9200444146 | F208: 0.000421362216 | G208: 0.5497327131 | H208: -0.9574068338

Sheet Spreadsheet14.3
B9: Option details | E9: Credit / Funding | I9: Value
B10: Spot | C10: 100 | E10: Credit Spread | F10: 150 | H10: CVA | I10: =-SUMPRODUCT(C19:C58,E19:E58)*LGD -> -0.1141870839
B11: Strike | C11: 100 | E11: Funding Spread | F11: 75 | H11: FVA (FCA) | I11: =-SUMPRODUCT(D19:D58,E19:E58) -> -0.05747822768
B12: Volatility | C12: 0.25 | E12: LGD | F12: 0.6 | H12: Total | I12: =I11+I10 -> -0.1716653116
B13: Maturity | C13: 1
B14: Interest rate | C14: 0.05
C17: Def Prob | D17: Funding Prob | E17: EE
B18: 0 | E18: =BSCall(Spot,Strike,Maturity-B18,IRate,Volatility) -> 12.33598589
B19: =B18+Maturity/40 -> 0.025 | C19: =EXP(-B18*CreditSpread/10000/LGD)-EXP(-B19*CreditSpread/10000/LGD) -> 0.0006248047282 | D19: =EXP(-FundingSpread*B18/10000)-EXP(-FundingSpread*B19/10000) -> 0.000187482423 | E19: =BSCall(Spot,Strike,Maturity-B19,IRate,Volatility) -> 12.15387926
B20: =B19+Maturity/40 -> 0.05 | C20: =EXP(-B19*CreditSpread/10000/LGD)-EXP(-B20*CreditSpread/10000/LGD) -> 0.0006244143472 | D20: =EXP(-FundingSpread*B19/10000)-EXP(-FundingSpread*B20/10000) -> 0.0001874472733 | E20: =BSCall(Spot,Strike,Maturity-B20,IRate,Volatility) -> 11.97004254
B21: =B20+Maturity/40 -> 0.075 | C21: =EXP(-B20*CreditSpread/10000/LGD)-EXP(-B21*CreditSpread/10000/LGD) -> 0.0006240242102 | D21: =EXP(-FundingSpread*B20/10000)-EXP(-FundingSpread*B21/10000) -> 0.0001874121302 | E21: =BSCall(Spot,Strike,Maturity-B21,IRate,Volatility) -> 11.78441081
B22: =B21+Maturity/40 -> 0.1 | C22: =EXP(-B21*CreditSpread/10000/LGD)-EXP(-B22*CreditSpread/10000/LGD) -> 0.0006236343169 | D22: =EXP(-FundingSpread*B21/10000)-EXP(-FundingSpread*B22/10000) -> 0.0001873769938 | E22: =BSCall(Spot,Strike,Maturity-B22,IRate,Volatility) -> 11.59691506
B23: =B22+Maturity/40 -> 0.125 | C23: =EXP(-B22*CreditSpread/10000/LGD)-EXP(-B23*CreditSpread/10000/LGD) -> 0.0006232446673 | D23: =EXP(-FundingSpread*B22/10000)-EXP(-FundingSpread*B23/10000) -> 0.0001873418639 | E23: =BSCall(Spot,Strike,Maturity-B23,IRate,Volatility) -> 11.40748114
B24: =B23+Maturity/40 -> 0.15 | C24: =EXP(-B23*CreditSpread/10000/LGD)-EXP(-B24*CreditSpread/10000/LGD) -> 0.000622855261 | D24: =EXP(-FundingSpread*B23/10000)-EXP(-FundingSpread*B24/10000) -> 0.0001873067406 | E24: =BSCall(Spot,Strike,Maturity-B24,IRate,Volatility) -> 11.21602957
B25: =B24+Maturity/40 -> 0.175 | C25: =EXP(-B24*CreditSpread/10000/LGD)-EXP(-B25*CreditSpread/10000/LGD) -> 0.0006224660981 | D25: =EXP(-FundingSpread*B24/10000)-EXP(-FundingSpread*B25/10000) -> 0.0001872716238 | E25: =BSCall(Spot,Strike,Maturity-B25,IRate,Volatility) -> 11.02247474
B26: =B25+Maturity/40 -> 0.2 | C26: =EXP(-B25*CreditSpread/10000/LGD)-EXP(-B26*CreditSpread/10000/LGD) -> 0.0006220771784 | D26: =EXP(-FundingSpread*B25/10000)-EXP(-FundingSpread*B26/10000) -> 0.0001872365137 | E26: =BSCall(Spot,Strike,Maturity-B26,IRate,Volatility) -> 10.82672507
B27: =B26+Maturity/40 -> 0.225 | C27: =EXP(-B26*CreditSpread/10000/LGD)-EXP(-B27*CreditSpread/10000/LGD) -> 0.0006216885016 | D27: =EXP(-FundingSpread*B26/10000)-EXP(-FundingSpread*B27/10000) -> 0.0001872014102 | E27: =BSCall(Spot,Strike,Maturity-B27,IRate,Volatility) -> 10.62868183
B28: =B27+Maturity/40 -> 0.25 | C28: =EXP(-B27*CreditSpread/10000/LGD)-EXP(-B28*CreditSpread/10000/LGD) -> 0.0006213000677 | D28: =EXP(-FundingSpread*B27/10000)-EXP(-FundingSpread*B28/10000) -> 0.0001871663132 | E28: =BSCall(Spot,Strike,Maturity-B28,IRate,Volatility) -> 10.42823783
B29: =B28+Maturity/40 -> 0.275 | C29: =EXP(-B28*CreditSpread/10000/LGD)-EXP(-B29*CreditSpread/10000/LGD) -> 0.0006209118765 | D29: =EXP(-FundingSpread*B28/10000)-EXP(-FundingSpread*B29/10000) -> 0.0001871312228 | E29: =BSCall(Spot,Strike,Maturity-B29,IRate,Volatility) -> 10.22527653
B30: =B29+Maturity/40 -> 0.3 | C30: =EXP(-B29*CreditSpread/10000/LGD)-EXP(-B30*CreditSpread/10000/LGD) -> 0.0006205239278 | D30: =EXP(-FundingSpread*B29/10000)-EXP(-FundingSpread*B30/10000) -> 0.000187096139 | E30: =BSCall(Spot,Strike,Maturity-B30,IRate,Volatility) -> 10.01967271
B31: =B30+Maturity/40 -> 0.325 | C31: =EXP(-B30*CreditSpread/10000/LGD)-EXP(-B31*CreditSpread/10000/LGD) -> 0.0006201362215 | D31: =EXP(-FundingSpread*B30/10000)-EXP(-FundingSpread*B31/10000) -> 0.0001870610617 | E31: =BSCall(Spot,Strike,Maturity-B31,IRate,Volatility) -> 9.811288339
B32: =B31+Maturity/40 -> 0.35 | C32: =EXP(-B31*CreditSpread/10000/LGD)-EXP(-B32*CreditSpread/10000/LGD) -> 0.0006197487575 | D32: =EXP(-FundingSpread*B31/10000)-EXP(-FundingSpread*B32/10000) -> 0.0001870259911 | E32: =BSCall(Spot,Strike,Maturity-B32,IRate,Volatility) -> 9.599973653
B33: =B32+Maturity/40 -> 0.375 | C33: =EXP(-B32*CreditSpread/10000/LGD)-EXP(-B33*CreditSpread/10000/LGD) -> 0.0006193615355 | D33: =EXP(-FundingSpread*B32/10000)-EXP(-FundingSpread*B33/10000) -> 0.000186990927 | E33: =BSCall(Spot,Strike,Maturity-B33,IRate,Volatility) -> 9.385563512
B34: =B33+Maturity/40 -> 0.4 | C34: =EXP(-B33*CreditSpread/10000/LGD)-EXP(-B34*CreditSpread/10000/LGD) -> 0.0006189745555 | D34: =EXP(-FundingSpread*B33/10000)-EXP(-FundingSpread*B34/10000) -> 0.0001869558695 | E34: =BSCall(Spot,Strike,Maturity-B34,IRate,Volatility) -> 9.167877029
B35: =B34+Maturity/40 -> 0.425 | C35: =EXP(-B34*CreditSpread/10000/LGD)-EXP(-B35*CreditSpread/10000/LGD) -> 0.0006185878173 | D35: =EXP(-FundingSpread*B34/10000)-EXP(-FundingSpread*B35/10000) -> 0.0001869208185 | E35: =BSCall(Spot,Strike,Maturity-B35,IRate,Volatility) -> 8.946713373
B36: =B35+Maturity/40 -> 0.45 | C36: =EXP(-B35*CreditSpread/10000/LGD)-EXP(-B36*CreditSpread/10000/LGD) -> 0.0006182013207 | D36: =EXP(-FundingSpread*B35/10000)-EXP(-FundingSpread*B36/10000) -> 0.0001868857742 | E36: =BSCall(Spot,Strike,Maturity-B36,IRate,Volatility) -> 8.721850408
B37: =B36+Maturity/40 -> 0.475 | C37: =EXP(-B36*CreditSpread/10000/LGD)-EXP(-B37*CreditSpread/10000/LGD) -> 0.0006178150656 | D37: =EXP(-FundingSpread*B36/10000)-EXP(-FundingSpread*B37/10000) -> 0.0001868507364 | E37: =BSCall(Spot,Strike,Maturity-B37,IRate,Volatility) -> 8.493039951
B38: =B37+Maturity/40 -> 0.5 | C38: =EXP(-B37*CreditSpread/10000/LGD)-EXP(-B38*CreditSpread/10000/LGD) -> 0.0006174290518 | D38: =EXP(-FundingSpread*B37/10000)-EXP(-FundingSpread*B38/10000) -> 0.0001868157051 | E38: =BSCall(Spot,Strike,Maturity-B38,IRate,Volatility) -> 8.260004404
B39: =B38+Maturity/40 -> 0.525 | C39: =EXP(-B38*CreditSpread/10000/LGD)-EXP(-B39*CreditSpread/10000/LGD) -> 0.0006170432792 | D39: =EXP(-FundingSpread*B38/10000)-EXP(-FundingSpread*B39/10000) -> 0.0001867806805 | E39: =BSCall(Spot,Strike,Maturity-B39,IRate,Volatility) -> 8.022430901
B40: =B39+Maturity/40 -> 0.55 | C40: =EXP(-B39*CreditSpread/10000/LGD)-EXP(-B40*CreditSpread/10000/LGD) -> 0.0006166577476 | D40: =EXP(-FundingSpread*B39/10000)-EXP(-FundingSpread*B40/10000) -> 0.0001867456624 | E40: =BSCall(Spot,Strike,Maturity-B40,IRate,Volatility) -> 7.77996477
B41: =B40+Maturity/40 -> 0.575 | C41: =EXP(-B40*CreditSpread/10000/LGD)-EXP(-B41*CreditSpread/10000/LGD) -> 0.000616272457 | D41: =EXP(-FundingSpread*B40/10000)-EXP(-FundingSpread*B41/10000) -> 0.0001867106509 | E41: =BSCall(Spot,Strike,Maturity-B41,IRate,Volatility) -> 7.532201425
B42: =B41+Maturity/40 -> 0.6 | C42: =EXP(-B41*CreditSpread/10000/LGD)-EXP(-B42*CreditSpread/10000/LGD) -> 0.000615887407 | D42: =EXP(-FundingSpread*B41/10000)-EXP(-FundingSpread*B42/10000) -> 0.0001866756459 | E42: =BSCall(Spot,Strike,Maturity-B42,IRate,Volatility) -> 7.278676062
B43: =B42+Maturity/40 -> 0.625 | C43: =EXP(-B42*CreditSpread/10000/LGD)-EXP(-B43*CreditSpread/10000/LGD) -> 0.0006155025977 | D43: =EXP(-FundingSpread*B42/10000)-EXP(-FundingSpread*B43/10000) -> 0.0001866406475 | E43: =BSCall(Spot,Strike,Maturity-B43,IRate,Volatility) -> 7.018850281
B44: =B43+Maturity/40 -> 0.65 | C44: =EXP(-B43*CreditSpread/10000/LGD)-EXP(-B44*CreditSpread/10000/LGD) -> 0.0006151180287 | D44: =EXP(-FundingSpread*B43/10000)-EXP(-FundingSpread*B44/10000) -> 0.0001866056556 | E44: =BSCall(Spot,Strike,Maturity-B44,IRate,Volatility) -> 6.752093568
B45: =B44+Maturity/40 -> 0.675 | C45: =EXP(-B44*CreditSpread/10000/LGD)-EXP(-B45*CreditSpread/10000/LGD) -> 0.0006147337001 | D45: =EXP(-FundingSpread*B44/10000)-EXP(-FundingSpread*B45/10000) -> 0.0001865706704 | E45: =BSCall(Spot,Strike,Maturity-B45,IRate,Volatility) -> 6.477661818
B46: =B45+Maturity/40 -> 0.7 | C46: =EXP(-B45*CreditSpread/10000/LGD)-EXP(-B46*CreditSpread/10000/LGD) -> 0.0006143496115 | D46: =EXP(-FundingSpread*B45/10000)-EXP(-FundingSpread*B46/10000) -> 0.0001865356916 | E46: =BSCall(Spot,Strike,Maturity-B46,IRate,Volatility) -> 6.194663913
B47: =B46+Maturity/40 -> 0.725 | C47: =EXP(-B46*CreditSpread/10000/LGD)-EXP(-B47*CreditSpread/10000/LGD) -> 0.000613965763 | D47: =EXP(-FundingSpread*B46/10000)-EXP(-FundingSpread*B47/10000) -> 0.0001865007195 | E47: =BSCall(Spot,Strike,Maturity-B47,IRate,Volatility) -> 5.902019147
B48: =B47+Maturity/40 -> 0.75 | C48: =EXP(-B47*CreditSpread/10000/LGD)-EXP(-B48*CreditSpread/10000/LGD) -> 0.0006135821543 | D48: =EXP(-FundingSpread*B47/10000)-EXP(-FundingSpread*B48/10000) -> 0.0001864657539 | E48: =BSCall(Spot,Strike,Maturity-B48,IRate,Volatility) -> 5.598395156
B49: =B48+Maturity/40 -> 0.775 | C49: =EXP(-B48*CreditSpread/10000/LGD)-EXP(-B49*CreditSpread/10000/LGD) -> 0.0006131987853 | D49: =EXP(-FundingSpread*B48/10000)-EXP(-FundingSpread*B49/10000) -> 0.0001864307948 | E49: =BSCall(Spot,Strike,Maturity-B49,IRate,Volatility) -> 5.282116499
B50: =B49+Maturity/40 -> 0.8 | C50: =EXP(-B49*CreditSpread/10000/LGD)-EXP(-B50*CreditSpread/10000/LGD) -> 0.0006128156558 | D50: =EXP(-FundingSpread*B49/10000)-EXP(-FundingSpread*B50/10000) -> 0.0001863958423 | E50: =BSCall(Spot,Strike,Maturity-B50,IRate,Volatility) -> 4.951027201
B51: =B50+Maturity/40 -> 0.825 | C51: =EXP(-B50*CreditSpread/10000/LGD)-EXP(-B51*CreditSpread/10000/LGD) -> 0.0006124327656 | D51: =EXP(-FundingSpread*B50/10000)-EXP(-FundingSpread*B51/10000) -> 0.0001863608964 | E51: =BSCall(Spot,Strike,Maturity-B51,IRate,Volatility) -> 4.602272043
B52: =B51+Maturity/40 -> 0.85 | C52: =EXP(-B51*CreditSpread/10000/LGD)-EXP(-B52*CreditSpread/10000/LGD) -> 0.0006120501148 | D52: =EXP(-FundingSpread*B51/10000)-EXP(-FundingSpread*B52/10000) -> 0.000186325957 | E52: =BSCall(Spot,Strike,Maturity-B52,IRate,Volatility) -> 4.23192991
B53: =B52+Maturity/40 -> 0.875 | C53: =EXP(-B52*CreditSpread/10000/LGD)-EXP(-B53*CreditSpread/10000/LGD) -> 0.0006116677029 | D53: =EXP(-FundingSpread*B52/10000)-EXP(-FundingSpread*B53/10000) -> 0.0001862910241 | E53: =BSCall(Spot,Strike,Maturity-B53,IRate,Volatility) -> 3.834357183
B54: =B53+Maturity/40 -> 0.9 | C54: =EXP(-B53*CreditSpread/10000/LGD)-EXP(-B54*CreditSpread/10000/LGD) -> 0.0006112855301 | D54: =EXP(-FundingSpread*B53/10000)-EXP(-FundingSpread*B54/10000) -> 0.0001862560979 | E54: =BSCall(Spot,Strike,Maturity-B54,IRate,Volatility) -> 3.400893711
B55: =B54+Maturity/40 -> 0.925 | C55: =EXP(-B54*CreditSpread/10000/LGD)-EXP(-B55*CreditSpread/10000/LGD) -> 0.000610903596 | D55: =EXP(-FundingSpread*B54/10000)-EXP(-FundingSpread*B55/10000) -> 0.0001862211781 | E55: =BSCall(Spot,Strike,Maturity-B55,IRate,Volatility) -> 2.91696421
B56: =B55+Maturity/40 -> 0.95 | C56: =EXP(-B55*CreditSpread/10000/LGD)-EXP(-B56*CreditSpread/10000/LGD) -> 0.0006105219005 | D56: =EXP(-FundingSpread*B55/10000)-EXP(-FundingSpread*B56/10000) -> 0.0001861862649 | E56: =BSCall(Spot,Strike,Maturity-B56,IRate,Volatility) -> 2.354154405
B57: =B56+Maturity/40 -> 0.975 | C57: =EXP(-B56*CreditSpread/10000/LGD)-EXP(-B57*CreditSpread/10000/LGD) -> 0.0006101404436 | D57: =EXP(-FundingSpread*B56/10000)-EXP(-FundingSpread*B57/10000) -> 0.0001861513583 | E57: =BSCall(Spot,Strike,Maturity-B57,IRate,Volatility) -> 1.639123158
B58: =B57+Maturity/40 -> 1 | C58: =EXP(-B57*CreditSpread/10000/LGD)-EXP(-B58*CreditSpread/10000/LGD) -> 0.0006097592249 | D58: =EXP(-FundingSpread*B57/10000)-EXP(-FundingSpread*B58/10000) -> 0.0001861164582 | E58: =BSCall(Spot,Strike,Maturity-B58,IRate,Volatility) -> 0
